bitfinex/quotes_BTCUSD_20251012
["timestamp","ask_amount","ask_price","bid_price","bid_amount"]
[1760305088595,2.66218818,114970.0,114960.0,0.05184]
[1760305089421,1.69138318,114970.0,114960.0,0.05184]
[1760305089627,2.66218818,114970.0,114960.0,0.05184]
[1760305089827,1.69138318,114970.0,114960.0,0.05184]
[1760305089987,2.66218818,114970.0,114960.0,0.05184]
[1760305092901,2.66218818,114970.0,114960.0,0.01]
[1760305093113,2.66609885,114970.0,114960.0,0.01]
[1760305093324,1.71288817,114970.0,114960.0,0.01]
[1760305093762,2.68369317,114970.0,114960.0,0.01]
[1760305093995,1.48483911,114920.0,114910.0,0.0418]
[1760305094211,2.05989387,114920.0,114910.0,0.0418]
[1760305094416,2.16226387,114920.0,114910.0,0.0418]
[1760305095243,1.19145887,114920.0,114910.0,0.0468]
[1760305095456,2.16226387,114920.0,114910.0,0.0468]
[1760305095654,2.16226387,114920.0,114910.0,0.0418]
[1760305095863,1.61907911,114920.0,114910.0,0.0418]
[1760305096095,1.61907911,114920.0,114910.0,0.0518]
[1760305096301,2.16226387,114920.0,114910.0,0.0518]
[1760305096522,1.19145887,114920.0,114910.0,0.0468]
[1760305096734,2.16226387,114920.0,114910.0,0.0518]
[1760305098203,1.19145887,114920.0,114910.0,0.0518]
[1760305098405,1.19145887,114920.0,114910.0,0.19413242]
[1760305098652,2.16226387,114920.0,114910.0,0.19413242]
[1760305099109,1.19145887,114920.0,114910.0,0.19413242]
[1760305099311,2.16226387,114920.0,114910.0,0.19413242]
[1760305099514,2.16338169,114920.0,114910.0,0.19413242]
[1760305099668,2.17950567,114920.0,114910.0,0.19413242]
[1760305099883,1.20870067,114920.0,114910.0,0.15233242]
[1760305100085,2.17950567,114920.0,114910.0,0.15233242]
[1760305100260,2.17950567,114920.0,114910.0,0.14733242]
[1760305100468,1.4848997,114880.0,114870.0,0.14767339]
[1760305100744,2.16475446,114880.0,114870.0,0.14782215]
[1760305101389,2.17358785,114880.0,114870.0,0.14782215]
[1760305102826,2.17358785,114880.0,114870.0,0.15282215]
[1760305103029,2.17358785,114880.0,114870.0,0.14782215]
[1760305103451,2.17358785,114880.0,114870.0,0.15782215]
[1760305103659,0.03196,114900.0,114880.0,0.0301519]
[1760305103829,0.17407955,114890.0,114880.0,0.0506519]
[1760305104090,0.51407955,114890.0,114880.0,0.2664566]
[1760305104507,0.34866955,114890.0,114880.0,0.2664566]
[1760305104662,0.5975391,114890.0,114880.0,0.2664566]
[1760305105056,0.5975391,114890.0,114880.0,0.2714566]
[1760305105441,0.58886955,114890.0,114880.0,0.2297466]
[1760305106084,0.58886955,114890.0,114880.0,0.2347466]
[1760305106301,0.58886955,114890.0,114880.0,0.0606519]
[1760305107327,0.65074955,114890.0,114880.0,0.0401519]
[1760305107527,0.58886955,114890.0,114880.0,0.2142466]
[1760305108456,0.58886955,114890.0,114880.0,0.2764566]
[1760305109115,0.59752676,114890.0,114880.0,0.2764566]
[1760305109315,0.65940676,114890.0,114880.0,0.0401519]
[1760305109451,0.59752676,114890.0,114880.0,0.0401519]
[1760305110057,2.17339652,114890.0,114880.0,0.005]
[1760305110276,1.4848997,114880.0,114870.0,0.14782215]
[1760305110516,2.12192446,114880.0,114870.0,0.14782215]
[1760305110708,2.18652492,114880.0,114870.0,0.14782215]
[1760305112049,2.18652492,114880.0,114870.0,0.15282215]
[1760305112458,2.18652492,114880.0,114870.0,0.15782215]
[1760305112884,1.21571992,114880.0,114870.0,0.14782215]
[1760305113065,2.18652492,114880.0,114870.0,0.15282215]
[1760305113227,2.18652492,114880.0,114870.0,0.15782215]
[1760305113636,1.21571992,114880.0,114870.0,0.15782215]
[1760305113836,2.18652492,114880.0,114870.0,0.15782215]
[1760305114262,1.21571992,114880.0,114870.0,0.15782215]
[1760305114458,2.18652492,114880.0,114870.0,0.15782215]
[1760305115034,2.18652492,114880.0,114870.0,0.15282215]
[1760305115236,2.18652492,114880.0,114870.0,0.15782215]
[1760305115374,2.18652492,114880.0,114870.0,0.15282215]
[1760305115764,2.18652492,114880.0,114870.0,0.15782215]
[1760305116002,2.18652492,114880.0,114870.0,0.15282215]
[1760305116227,2.18652492,114880.0,114870.0,0.15782215]
[1760305116661,2.18652492,114880.0,114870.0,0.15282215]
[1760305117000,2.20260116,114880.0,114870.0,0.15782215]
[1760305117485,2.20260116,114880.0,114870.0,0.15282215]
[1760305117790,2.22879225,114880.0,114870.0,0.15782215]
[1760305118145,2.22879225,114880.0,114870.0,0.15282215]
[1760305118343,2.22879225,114880.0,114870.0,0.15782215]
[1760305118542,2.20702179,114880.0,114870.0,1e-08]
[1760305118843,2.20702179,114880.0,114830.0,0.22228144]
[1760305118844,0.51415534,114840.0,114830.0,0.22228144]
[1760305119043,2.19825838,114840.0,114830.0,0.22236787]
[1760305119248,2.19825838,114840.0,114830.0,0.1531008]
[1760305121098,1.65507362,114840.0,114830.0,0.1531008]
[1760305121357,1.65507362,114840.0,114830.0,0.1551008]
[1760305121533,2.19825838,114840.0,114830.0,0.1531008]
[1760305121919,2.20325838,114840.0,114830.0,0.1531008]
[1760305122129,1.66007362,114840.0,114830.0,0.1531008]
[1760305122496,1.67007362,114840.0,114830.0,0.1531008]
[1760305123681,2.21325838,114840.0,114830.0,0.1531008]
[1760305127521,1.67007362,114840.0,114830.0,0.1531008]
[1760305127727,2.21325838,114840.0,114830.0,0.1531008]
[1760305128796,0.985805,114840.0,114830.0,0.47989411]
[1760305129038,0.985805,114840.0,114830.0,0.56855273]
[1760305129039,0.015,114840.0,114830.0,0.56855273]
[1760305129241,0.015,114840.0,114830.0,0.63079336]
[1760305129467,0.015,114840.0,114830.0,0.65727207]
[1760305129678,0.013,114840.0,114830.0,0.56855273]
[1760305131285,0.04020721,114890.0,114850.0,0.17414018]
[1760305131514,0.04020721,114890.0,114880.0,0.2407047]
[1760305131515,0.05632703,114890.0,114880.0,0.2407047]
[1760305131734,0.00865721,114890.0,114880.0,0.2825447]
[1760305132153,0.970805,114890.0,114880.0,0.42887225]
[1760305132359,0.04100373,114910.0,114900.0,0.1740644]
[1760305132567,0.02557531,114910.0,114900.0,0.2686663]
[1760305132807,0.02557531,114910.0,114900.0,0.3281463]
[1760305132808,0.01682922,114910.0,114900.0,0.3281463]
[1760305133035,0.01682922,114910.0,114900.0,0.47018141]
[1760305133036,0.00070764,114910.0,114900.0,0.47018141]
[1760305133456,0.01612321,114940.0,114930.0,0.20417086]
[1760305133678,0.29897354,114960.0,114950.0,0.17398869]
[1760305133885,0.47428289,114960.0,114950.0,0.28027869]
[1760305134098,0.37346582,114960.0,114950.0,0.32570562]
[1760305134307,0.19937966,114960.0,114950.0,0.32570562]
[1760305134542,0.01661919,114960.0,114950.0,0.35585752]
[1760305134744,0.00049598,114960.0,114950.0,0.35585752]
[1760305135165,0.21488953,114960.0,114950.0,0.15024883]
[1760305135382,2.1760125,114960.0,114950.0,0.05184]
[1760305135615,2.1840642,114960.0,114950.0,0.04184]
[1760305135818,2.1760125,114960.0,114950.0,0.04684]
[1760305136047,2.20108229,114960.0,114950.0,0.05184]
[1760305136880,2.21006487,114960.0,114950.0,0.05184]
[1760305137216,0.35612321,114960.0,114950.0,0.18316]
[1760305137572,0.35612321,114960.0,114950.0,0.35714869]
[1760305137956,0.34,114960.0,114950.0,0.38730059]
[1760305138174,0.34,114960.0,114950.0,0.45038126]
[1760305139714,0.34,114960.0,114950.0,0.42022936]
[1760305140091,0.34279346,114960.0,114950.0,0.42022936]
[1760305140693,0.00279346,114960.0,114950.0,0.45038126]
[1760305141244,0.34279346,114960.0,114950.0,0.45038126]
[1760305142330,0.34279346,114960.0,114950.0,0.53991078]
[1760305143170,0.00279346,114960.0,114950.0,0.53991078]
[1760305144126,0.00279346,114960.0,114950.0,0.58658603]
[1760305144127,0.34279346,114960.0,114950.0,0.58658603]
[1760305144338,0.34279346,114960.0,114950.0,0.58158603]
[1760305144556,0.34279346,114960.0,114950.0,0.28766869]
[1760305144774,0.36084346,114960.0,114950.0,0.28966869]
[1760305144977,0.34279346,114960.0,114950.0,0.34914869]
[1760305146413,0.51676701,114960.0,114950.0,0.34914869]
[1760305147976,0.34279346,114960.0,114950.0,0.34914869]
[1760305148197,0.51676701,114960.0,114950.0,0.34914869]
[1760305148379,0.53481701,114960.0,114950.0,0.28966869]
[1760305148582,0.53481701,114960.0,114950.0,0.11568]
[1760305148782,0.53481701,114960.0,114950.0,0.28966869]
[1760305148986,0.57523701,114960.0,114950.0,0.04384]
[1760305149615,1.54604201,114960.0,114950.0,0.04384]
[1760305149805,2.34205909,114960.0,114950.0,0.04384]
[1760305150206,2.43637309,114960.0,114950.0,0.04384]
[1760305150452,2.46477406,114960.0,114950.0,0.04384]
[1760305150668,1.27393604,114930.0,114920.0,0.0418]
[1760305150889,2.29119201,114930.0,114920.0,0.0418]
[1760305151104,2.36882969,114930.0,114920.0,0.0418]
[1760305151304,1.39802469,114930.0,114920.0,0.0418]
[1760305151504,2.36882969,114930.0,114920.0,0.0418]
[1760305152028,1.4848694,114900.0,114890.0,0.06926707]
[1760305152237,2.29123745,114900.0,114890.0,0.06926707]
[1760305152446,1.48488455,114890.0,114880.0,0.0418]
[1760305152653,1.3023976,114890.0,114880.0,0.0418]
[1760305152855,2.3497226,114890.0,114880.0,0.0418]
[1760305153284,2.3497226,114890.0,114880.0,0.04229598]
[1760305154196,1.3789176,114890.0,114880.0,0.04229598]
[1760305154411,2.3497226,114890.0,114880.0,0.04229598]
[1760305154820,0.44492097,114890.0,114880.0,0.04229598]
[1760305154994,0.970805,114900.0,114880.0,0.34771068]
[1760305155193,0.35805,114900.0,114880.0,0.39408444]
[1760305155407,0.35805,114900.0,114890.0,0.03022]
[1760305155614,0.35805,114900.0,114890.0,0.20429955]
[1760305155848,0.35805,114900.0,114890.0,0.24591955]
[1760305156068,0.34,114900.0,114890.0,0.24591955]
[1760305156277,0.52275171,114910.0,114900.0,0.1740644]
[1760305156490,0.02519028,114920.0,114910.0,0.25200364]
[1760305156687,0.09886173,114960.0,114910.0,0.25200364]
[1760305156688,0.094314,114960.0,114950.0,0.17398869]
[1760305156905,0.094314,114960.0,114950.0,0.41205984]
[1760305157116,0.094314,114960.0,114950.0,1.51197692]
[1760305157117,1e-08,114960.0,114950.0,1.51197692]
[1760305157336,0.0002,114980.0,114970.0,0.17395842]
[1760305157534,0.998635,114980.0,114970.0,0.17395842]
[1760305157773,1.04311383,114980.0,114970.0,0.17395842]
[1760305158802,1.04311383,114980.0,114970.0,0.22044776]
[1760305159002,0.03188883,114980.0,114970.0,0.22044776]
[1760305159207,0.00425883,114980.0,114970.0,0.20491842]
[1760305159414,0.00425883,114980.0,114970.0,0.29436962]
[1760305159831,0.00425883,114980.0,114970.0,0.34091774]
[1760305160417,0.00425883,114980.0,114970.0,0.29436962]
[1760305160580,0.00425883,114980.0,114970.0,0.39943848]
[1760305160787,0.00425883,114980.0,114970.0,0.35286962]
[1760305162937,0.00425883,114980.0,114970.0,0.41525274]
[1760305165316,0.00425883,114980.0,114970.0,0.36849154]
[1760305165758,0.00425883,114980.0,114970.0,0.30610842]
[1760305167524,0.00425883,114980.0,114970.0,0.38394222]
[1760305167966,0.00425883,114980.0,114970.0,0.30610842]
[1760305168190,0.0041177,114980.0,114970.0,0.30610842]
[1760305168401,0.0041177,114980.0,114970.0,0.364922]
[1760305169269,0.17395842,114970.0,114960.0,0.0778338]
[1760305169487,0.29747902,114970.0,114960.0,0.06210734]
[1760305169707,0.23807902,114970.0,114960.0,0.23608089]
[1760305169944,0.23807902,114970.0,114960.0,0.06210734]
[1760305170163,0.29709902,114970.0,114960.0,0.06210734]
[1760305170399,0.23807902,114970.0,114960.0,0.06210734]
[1760305170593,0.29709902,114970.0,114960.0,0.06210734]
[1760305171215,0.23807902,114970.0,114960.0,0.06210734]
[1760305171416,0.23807902,114970.0,114960.0,0.23608089]
[1760305171542,0.24207902,114970.0,114960.0,0.06210734]
[1760305172016,0.23807902,114970.0,114960.0,0.06210734]
[1760305172341,0.30109902,114970.0,114960.0,0.06210734]
[1760305172765,0.34,114960.0,114950.0,0.3081103]
[1760305173225,0.34,114960.0,114950.0,0.3508003]
[1760305173635,0.55635355,114960.0,114950.0,0.10390734]
[1760305173839,1.67369045,114960.0,114950.0,0.0418]
[1760305174031,2.43360753,114960.0,114950.0,0.0418]
[1760305174361,2.37373563,114960.0,114950.0,0.0418]
[1760305174779,2.37773563,114960.0,114950.0,0.0418]
[1760305175010,2.40151741,114960.0,114950.0,0.0418]
[1760305175444,2.39751741,114960.0,114950.0,0.0418]
[1760305175829,2.40151741,114960.0,114950.0,0.0418]
[1760305176131,2.39751741,114960.0,114950.0,0.0418]
[1760305176336,2.48623675,114960.0,114950.0,0.0418]
[1760305176889,0.17403411,114920.0,114910.0,0.14202707]
[1760305177066,0.24211411,114920.0,114910.0,0.14202707]
[1760305177217,0.24211411,114920.0,114910.0,0.07276]
[1760305177865,2.37173619,114920.0,114910.0,0.0418]
[1760305178072,2.42101722,114920.0,114910.0,0.04229598]
[1760305178274,2.45416912,114920.0,114910.0,0.00049598]
[1760305178475,2.45616912,114920.0,114910.0,0.00049598]
[1760305178895,0.34,114870.0,114860.0,0.14202707]
[1760305179051,0.56505765,114870.0,114860.0,0.14217575]
[1760305179254,0.56505765,114870.0,114860.0,0.07290868]
[1760305179498,0.60728765,114870.0,114860.0,0.07290868]
[1760305179723,0.60728765,114870.0,114860.0,0.04194868]
[1760305179922,0.60728765,114870.0,114860.0,0.10407629]
[1760305180331,2.39723973,114870.0,114860.0,0.04194868]
[1760305180860,2.39923973,114870.0,114860.0,0.04194868]
[1760305182103,2.48795907,114870.0,114860.0,0.00014868]
[1760305182307,2.49668832,114870.0,114860.0,0.00014868]
[1760305182517,2.49668832,114870.0,114860.0,1e-08]
[1760305182735,0.5394328,114860.0,114850.0,0.0004]
[1760305182870,1.31513988,114860.0,114850.0,0.0004]
[1760305183070,2.41322413,114860.0,114850.0,0.0004]
[1760305183684,1.44241913,114860.0,114850.0,0.0004]
[1760305183885,0.39817,114860.0,114850.0,0.04309]
[1760305184086,0.970805,114870.0,114860.0,0.17412502]
[1760305184293,1.310805,114870.0,114860.0,0.13215]
[1760305184661,0.34,114870.0,114860.0,0.30627502]
[1760305185319,0.343,114870.0,114860.0,0.30627502]
[1760305185844,0.344,114870.0,114860.0,0.30627502]
[1760305186444,0.341,114870.0,114860.0,0.30627502]
[1760305187029,0.344,114870.0,114860.0,0.30627502]
[1760305187251,0.004,114870.0,114860.0,0.35832324]
[1760305190722,0.004,114870.0,114860.0,0.30627502]
[1760305190928,0.004,114870.0,114860.0,0.30927502]
[1760305193056,0.17810986,114870.0,114860.0,0.30927502]
[1760305193279,0.004,114870.0,114860.0,0.30927502]
[1760305194712,0.17810986,114870.0,114860.0,0.24502502]
[1760305194877,0.17412502,114860.0,114850.0,0.26974878]
[1760305195079,0.17412502,114860.0,114850.0,0.30968878]
[1760305195415,0.17398378,114860.0,114850.0,0.30968878]
[1760305195633,0.51398378,114860.0,114850.0,0.30968878]
[1760305195835,0.51398378,114860.0,114850.0,0.0004]
[1760305195836,0.57960378,114860.0,114850.0,0.0004]
[1760305196041,0.64051378,114860.0,114850.0,0.0004]
[1760305196171,2.39854365,114860.0,114850.0,0.0004]
[1760305196618,2.39654365,114860.0,114850.0,0.0004]
[1760305196828,2.51741489,114860.0,114850.0,0.0004]
[1760305197002,1.54660989,114860.0,114850.0,0.0004]
[1760305197183,1.54660989,114860.0,114850.0,1e-08]
[1760305197184,2.4921071,114860.0,114850.0,1e-08]
[1760305197387,1.48496034,114840.0,114830.0,0.15785535]
[1760305197610,2.31016736,114840.0,114830.0,0.15794178]
[1760305197820,2.43655661,114840.0,114830.0,0.15794178]
[1760305198424,2.39292661,114840.0,114830.0,0.15794178]
[1760305198646,2.35029661,114840.0,114830.0,0.15794178]
[1760305198845,2.35029661,114840.0,114830.0,0.2044356]
[1760305199170,0.001,114840.0,114830.0,0.52894183]
[1760305199372,0.004,114840.0,114830.0,0.52894183]
[1760305200007,0.001,114840.0,114830.0,0.46708229]
[1760305200268,0.001,114840.0,114830.0,0.52894183]
[1760305200486,1.00225409,114850.0,114830.0,0.29052132]
[1760305200706,0.34,114840.0,114830.0,0.45237908]
[1760305200917,0.341,114840.0,114830.0,0.46469066]
[1760305201141,0.34,114840.0,114830.0,0.46469066]
[1760305201356,0.34,114840.0,114830.0,0.52894066]
[1760305201580,0.51415534,114840.0,114830.0,0.52994066]
[1760305201799,0.51415534,114840.0,114830.0,0.29152132]
[1760305202015,0.51415534,114840.0,114830.0,0.22966178]
[1760305202451,0.51415534,114840.0,114830.0,0.27625205]
[1760305202941,0.51415534,114840.0,114830.0,0.22966178]
[1760305203147,0.51415534,114840.0,114830.0,0.40383229]
[1760305203351,0.51415534,114840.0,114830.0,0.40283229]
[1760305203828,0.51415534,114840.0,114830.0,0.40383229]
[1760305204265,0.51415534,114840.0,114830.0,0.29152132]
[1760305204501,0.51415534,114840.0,114830.0,0.22866178]
[1760305204958,0.51415534,114840.0,114830.0,0.22966178]
[1760305205366,0.51415534,114840.0,114830.0,0.29152132]
[1760305205993,0.51415534,114840.0,114830.0,0.2661455]
[1760305206202,0.51415534,114840.0,114830.0,0.32800504]
[1760305206403,0.51415534,114840.0,114830.0,0.32700504]
[1760305206609,0.51415534,114840.0,114830.0,0.33512062]
[1760305206818,0.51415534,114840.0,114830.0,0.33612062]
[1760305207028,0.51415534,114840.0,114830.0,0.33512062]
[1760305207226,0.54268534,114840.0,114830.0,0.33612062]
[1760305207686,0.54268534,114840.0,114830.0,0.29152132]
[1760305207893,1.62263249,114840.0,114830.0,0.15894178]
[1760305208444,2.19141051,114840.0,114830.0,0.15894178]
[1760305208643,2.19141051,114840.0,114830.0,0.22080132]
[1760305208855,2.19141051,114840.0,114830.0,0.20573454]
[1760305209101,2.28012985,114840.0,114830.0,0.20573454]
[1760305209316,1.73665962,114840.0,114830.0,0.20473454]
[1760305209666,1.73665962,114840.0,114830.0,0.15894178]
[1760305209888,1.73665962,114840.0,114830.0,0.20573454]
[1760305210439,2.28012985,114840.0,114830.0,0.20573454]
[1760305211878,2.28012985,114840.0,114830.0,0.15894178]
[1760305212238,2.28012985,114840.0,114830.0,0.22134221]
[1760305212639,2.28012985,114840.0,114830.0,0.15894178]
[1760305213046,2.28012985,114840.0,114830.0,0.23677558]
[1760305213861,2.28012985,114840.0,114830.0,0.23577558]
[1760305214065,2.28012985,114840.0,114830.0,0.15794178]
[1760305214275,2.28012985,114840.0,114830.0,0.15894178]
[1760305214483,2.28012985,114840.0,114830.0,0.22131909]
[1760305214865,2.28012985,114840.0,114830.0,0.22131906]
[1760305215469,2.28012985,114840.0,114830.0,0.22031906]
[1760305215793,1.30946485,114840.0,114830.0,0.22131906]
[1760305215994,2.28012985,114840.0,114830.0,0.15894178]
[1760305216427,2.28012985,114840.0,114830.0,0.20571562]
[1760305216932,2.28012985,114840.0,114830.0,0.22131906]
[1760305217348,2.19141051,114840.0,114830.0,0.22131906]
[1760305217902,2.19141051,114840.0,114830.0,0.15894178]
[1760305218077,1.22074551,114840.0,114830.0,0.15894178]
[1760305218281,1.22074551,114840.0,114830.0,0.22131906]
[1760305218282,2.19141051,114840.0,114830.0,0.22131906]
[1760305218487,2.19141051,114840.0,114830.0,0.15894178]
[1760305218689,2.28012985,114840.0,114830.0,0.15894178]
[1760305218891,2.28012985,114840.0,114830.0,0.20472723]
[1760305219440,1.30946485,114840.0,114830.0,0.22131906]
[1760305219637,2.28012985,114840.0,114830.0,0.22031906]
[1760305219820,2.28012985,114840.0,114830.0,0.22131906]
[1760305220018,1.30946485,114840.0,114830.0,0.22131906]
[1760305220220,1.30946485,114840.0,114830.0,0.22036725]
[1760305220648,2.28012985,114840.0,114830.0,0.15894178]
[1760305221069,2.20948735,114840.0,114830.0,0.24008954]
[1760305221736,1.23882235,114840.0,114830.0,0.23908954]
[1760305222183,1.23882235,114840.0,114830.0,0.15894178]
[1760305222402,2.20948735,114840.0,114830.0,0.15894178]
[1760305222612,1.15010301,114840.0,114830.0,0.15894178]
[1760305223022,2.12076801,114840.0,114830.0,0.20580552]
[1760305223222,2.16706214,114840.0,114830.0,0.205834]
[1760305223768,2.16706214,114840.0,114830.0,0.24523682]
[1760305223964,2.25578148,114840.0,114830.0,0.16708243]
[1760305224583,2.25578148,114840.0,114830.0,0.15894178]
[1760305225004,2.25578148,114840.0,114830.0,0.20585617]
[1760305225966,2.25578148,114840.0,114830.0,1e-08]
[1760305226174,2.25547368,114840.0,114830.0,1e-08]
[1760305226389,2.05847281,114820.0,114810.0,0.0418]
[1760305226588,2.1422035,114820.0,114810.0,0.04188611]
[1760305226800,2.2443935,114820.0,114810.0,0.04188611]
[1760305227006,2.19728949,114820.0,114810.0,0.06066287]
[1760305227840,1.22662449,114820.0,114810.0,0.06066287]
[1760305228046,2.19728949,114820.0,114810.0,0.10446196]
[1760305228256,2.19628949,114820.0,114810.0,0.10446196]
[1760305229194,2.22249456,114820.0,114810.0,0.04188611]
[1760305229416,2.22249456,114820.0,114810.0,0.04388611]
[1760305229822,1.25182956,114820.0,114810.0,0.04188611]
[1760305230024,1.62732001,114820.0,114810.0,0.04188611]
[1760305230242,2.17079024,114820.0,114810.0,0.10446196]
[1760305230453,2.17079024,114820.0,114810.0,0.04188611]
[1760305230676,2.17105969,114820.0,114810.0,0.04188611]
[1760305231103,2.17105969,114820.0,114810.0,0.10646196]
[1760305231318,2.17105969,114820.0,114810.0,0.10446196]
[1760305231568,2.17105969,114820.0,114810.0,0.10646196]
[1760305231782,2.17079024,114820.0,114810.0,0.10619251]
[1760305232034,2.17079024,114820.0,114810.0,0.10731178]
[1760305232251,1.62732001,114820.0,114810.0,0.04473593]
[1760305232461,2.17079024,114820.0,114810.0,0.04473593]
[1760305233112,1.20012524,114820.0,114810.0,0.10731178]
[1760305233582,2.17079024,114820.0,114810.0,0.10731178]
[1760305234218,2.25950958,114820.0,114810.0,0.04473593]
[1760305234847,1.28884458,114820.0,114810.0,0.04473593]
[1760305235281,2.25950958,114820.0,114810.0,0.04473593]
[1760305237025,2.25950958,114820.0,114810.0,0.10731178]
[1760305237261,2.27567627,114820.0,114810.0,0.10531178]
[1760305237480,2.27567627,114820.0,114810.0,0.10731178]
[1760305237701,2.25950958,114820.0,114810.0,0.10531178]
[1760305238157,2.25950958,114820.0,114810.0,0.10731178]
[1760305238364,2.25950958,114820.0,114810.0,0.10531178]
[1760305238595,2.25950958,114820.0,114810.0,0.10731178]
[1760305239011,2.25950958,114820.0,114810.0,0.10531178]
[1760305239235,2.25950958,114820.0,114810.0,0.04473593]
[1760305242089,2.25950958,114820.0,114810.0,0.04273593]
[1760305242701,2.25950958,114820.0,114810.0,0.04473593]
[1760305243339,2.25950958,114820.0,114810.0,0.10731178]
[1760305243543,1.28884458,114820.0,114810.0,0.06619124]
[1760305243788,2.25950958,114820.0,114810.0,0.07234679]
[1760305244197,2.25950958,114820.0,114810.0,0.07334679]
[1760305244411,2.25950958,114820.0,114810.0,0.07234679]
[1760305244618,2.25950958,114820.0,114810.0,0.07334679]
[1760305244824,2.25950958,114820.0,114810.0,0.06519124]
[1760305245711,1.33713286,114820.0,114810.0,0.06519124]
[1760305245966,2.30779786,114820.0,114810.0,0.06519124]
[1760305246234,2.30779786,114820.0,114810.0,0.00261539]
[1760305246497,2.30779786,114820.0,114810.0,0.04960929]
[1760305246753,2.30779786,114820.0,114810.0,0.04860929]
[1760305247292,2.30779786,114820.0,114810.0,0.04960929]
[1760305247486,2.32397649,114820.0,114810.0,0.04960929]
[1760305247607,1.33713286,114820.0,114810.0,0.04960929]
[1760305247824,2.30779786,114820.0,114810.0,0.04960929]
[1760305248884,2.32523786,114820.0,114810.0,0.04960929]
[1760305249154,2.30779786,114820.0,114810.0,0.04960929]
[1760305249919,1.33713286,114820.0,114810.0,0.04960929]
[1760305250130,2.30779786,114820.0,114810.0,0.04960929]
[1760305251433,1.33713286,114820.0,114810.0,0.02612188]
[1760305251644,2.30779786,114820.0,114810.0,0.02612188]
[1760305251851,1.33713286,114820.0,114810.0,0.00261539]
[1760305252051,2.30779786,114820.0,114810.0,0.00261539]
[1760305252255,2.30779786,114820.0,114810.0,0.02612478]
[1760305252574,2.32398499,114820.0,114810.0,0.02612478]
[1760305252840,1.35331999,114820.0,114810.0,0.02612478]
[1760305253044,2.32398499,114820.0,114810.0,0.02612478]
[1760305253278,1.78051476,114820.0,114810.0,0.02612478]
[1760305253492,2.32398499,114820.0,114810.0,0.02612478]
[1760305255071,1.35331999,114820.0,114810.0,0.02612478]
[1760305255245,2.32398499,114820.0,114810.0,0.02612478]
[1760305255616,1.94271955,114820.0,114810.0,0.02612478]
[1760305255878,2.91338455,114820.0,114810.0,0.02612478]
[1760305256337,2.91338455,114820.0,114810.0,0.02512478]
[1760305257389,2.91338455,114820.0,114810.0,0.07529623]
[1760305257839,2.21998485,114820.0,114810.0,0.07529623]
[1760305258042,2.1128308,114820.0,114810.0,0.09878074]
[1760305258248,2.1138308,114820.0,114810.0,0.09878074]
[1760305258450,2.1726608,114820.0,114810.0,0.09878074]
[1760305258788,2.1716608,114820.0,114810.0,0.10694575]
[1760305259010,2.1726608,114820.0,114810.0,0.10694575]
[1760305259682,2.26138014,114820.0,114810.0,0.10694575]
[1760305259896,2.26138014,114820.0,114810.0,0.09878074]
[1760305260099,1.59813234,114820.0,114810.0,0.09878074]
[1760305260311,2.1726608,114820.0,114810.0,0.05178684]
[1760305261328,2.74718926,114820.0,114810.0,0.07530185]
[1760305261748,2.10875282,114820.0,114810.0,0.07530185]
[1760305261951,2.19747216,114820.0,114810.0,0.05178684]
[1760305263349,2.22449182,114820.0,114810.0,0.07530151]
[1760305263753,2.22449182,114820.0,114810.0,0.08346666]
[1760305265472,2.22449182,114820.0,114810.0,0.05210925]
[1760305265673,2.22449182,114820.0,114810.0,0.0439441]
[1760305265898,2.22449182,114820.0,114810.0,0.07530151]
[1760305266312,2.22449182,114820.0,114810.0,0.0439441]
[1760305270843,2.22449182,114820.0,114810.0,0.05210991]
[1760305271887,2.22449182,114820.0,114810.0,0.0439441]
[1760305272257,2.22449182,114820.0,114810.0,0.02513006]
[1760305274806,0.001,114820.0,114810.0,0.34386365]
[1760305275017,0.001,114820.0,114810.0,0.98980204]
[1760305275234,0.001,114820.0,114810.0,1.00538399]
[1760305275427,0.06926707,114850.0,114840.0,0.17415534]
[1760305275628,0.06926707,114850.0,114840.0,0.31246891]
[1760305275838,0.06980744,114870.0,114860.0,0.17412502]
[1760305276045,0.00054037,114870.0,114860.0,0.37145391]
[1760305276249,0.00054037,114870.0,114860.0,0.39494808]
[1760305276693,0.00054037,114870.0,114860.0,0.42627577]
[1760305276897,0.00054037,114870.0,114860.0,1.02561559]
[1760305277099,0.00368895,114870.0,114860.0,1.02561559]
[1760305277332,0.00368895,114870.0,114860.0,0.9942879]
[1760305277534,0.00368895,114870.0,114860.0,0.48366742]
[1760305277986,0.00368895,114870.0,114860.0,0.39494808]
[1760305278188,1.02541929,114870.0,114860.0,0.13233889]
[1760305278393,1.88767443,114870.0,114860.0,0.28766502]
[1760305278603,2.06378429,114870.0,114860.0,0.30641222]
[1760305278813,2.06378429,114870.0,114860.0,0.28766502]
[1760305279015,2.06178429,114870.0,114860.0,0.28766502]
[1760305279234,2.06178429,114870.0,114860.0,0.28898189]
[1760305279437,2.06378429,114870.0,114860.0,0.28898189]
[1760305279635,1.37905395,114870.0,114860.0,0.28898189]
[1760305279921,1.37705395,114870.0,114860.0,0.28898189]
[1760305280223,1.37905395,114870.0,114860.0,0.28898189]
[1760305280427,1.55316381,114870.0,114860.0,0.28898189]
[1760305280637,1.55316381,114870.0,114860.0,0.33597343]
[1760305281271,1.55316381,114870.0,114860.0,0.28898189]
[1760305282486,2.46683334,114870.0,114860.0,0.04315687]
[1760305282688,2.493853,114870.0,114860.0,0.08992378]
[1760305282896,2.493853,114870.0,114860.0,0.12110285]
[1760305283253,2.493853,114870.0,114860.0,0.08992378]
[1760305283451,2.493853,114870.0,114860.0,0.12109342]
[1760305283452,1.523188,114870.0,114860.0,0.12109342]
[1760305283672,2.52004151,114870.0,114860.0,0.12109342]
[1760305284279,1.54937651,114870.0,114860.0,0.07432651]
[1760305284506,2.52004151,114870.0,114860.0,0.09769832]
[1760305284713,2.52004151,114870.0,114860.0,0.06652868]
[1760305285187,2.52004151,114870.0,114860.0,0.09769832]
[1760305285836,1.54937651,114870.0,114860.0,0.09769832]
[1760305286179,2.51804151,114870.0,114860.0,0.09769832]
[1760305286620,2.51804151,114870.0,114860.0,0.06652868]
[1760305287464,2.40230251,114870.0,114860.0,0.09769832]
[1760305287684,2.40430251,114870.0,114860.0,0.09769832]
[1760305287887,2.40430251,114870.0,114860.0,0.10581349]
[1760305288094,2.42964887,114870.0,114860.0,0.10581349]
[1760305288303,2.42964887,114870.0,114860.0,0.08244168]
[1760305288304,1.45998387,114870.0,114860.0,0.08244168]
[1760305288514,2.43164887,114870.0,114860.0,0.08244168]
[1760305288754,2.43264887,114870.0,114860.0,0.08244168]
[1760305288971,2.43264887,114870.0,114860.0,0.07432651]
[1760305289214,1.46198387,114870.0,114860.0,0.07432651]
[1760305289417,1.46198387,114870.0,114860.0,0.12109342]
[1760305289626,2.43264887,114870.0,114860.0,0.12109342]
[1760305290049,1.4614435,114870.0,114860.0,0.12109342]
[1760305290262,2.4321085,114870.0,114860.0,0.08992378]